fUST/lending_fUST_20260515
["ID","MTS","AMOUNT","RATE_DAILY","PERIOD"]
[422287633,1778794246000,-1053.01,0.00011232,2]
[422287637,1778794246000,-500.0,0.00011232,2]
[422287631,1778794246000,-500.0,0.00011232,2]
[422287620,1778794246000,-500.0,0.00011232,2]
[422287616,1778794246000,-500.0,0.00011232,2]
[422287630,1778794246000,-500.0,0.00011232,2]
[422287626,1778794246000,-500.0,0.00011232,2]
[422287622,1778794246000,-500.0,0.00011232,2]
[422287745,1778794247000,-500.0,0.00011232,2]
[422287759,1778794247000,-500.0,0.00011232,2]
[422287779,1778794247000,-338.63304767,0.00011232,2]
[422287760,1778794247000,-500.0,0.00011232,2]
[422287761,1778794247000,-510.93,0.00011232,2]
[422287763,1778794247000,-500.0,0.00011232,2]
[422287773,1778794247000,-500.0,0.00011232,2]
[422287767,1778794247000,-500.0,0.00011232,2]
[422287775,1778794247000,-500.0,0.00011232,2]
[422287769,1778794247000,-499.56178937,0.00011232,2]
[422287827,1778794247000,-500.0,0.00011232,2]
[422287777,1778794247000,-500.0,0.00011232,2]
[422287823,1778794247000,-500.0,0.00011232,2]
[422287825,1778794247000,-501.86214373,0.00011232,2]
[422287829,1778794247000,-500.0,0.00011232,2]
[422287820,1778794247000,-500.0,0.00011232,2]
[422287831,1778794247000,-500.0,0.00011232,2]
[422287816,1778794247000,-161.36695233,0.00011232,2]
[422287747,1778794247000,-331.79299875,0.00011232,2]
[422287818,1778794247000,-649.53105258,0.00011232,2]
[422287771,1778794247000,-500.0,0.00011232,2]
[422287743,1778794247000,-500.0,0.00011232,2]
[422287730,1778794247000,-1161.77,0.00011232,2]
[422287755,1778794247000,-500.0,0.00011232,2]
[422287833,1778794247000,-500.0,0.00011232,2]
[422287709,1778794247000,-500.0,0.00011232,2]
[422287707,1778794247000,-1272.28,0.00011232,2]
[422287711,1778794247000,-500.65715731,0.00011232,2]
[422287713,1778794247000,-511.30776737,0.00011232,2]
[422287715,1778794247000,-500.0,0.00011232,2]
[422287725,1778794247000,-500.0,0.00011232,2]
[422287728,1778794247000,-500.0,0.00011232,2]
[422287727,1778794247000,-425.38145251,0.00011232,2]
[422287732,1778794247000,-500.0,0.00011232,2]
[422287719,1778794247000,-503.35701461,0.00011232,2]
[422287721,1778794247000,-500.96406248,0.00011232,2]
[422287734,1778794247000,-454.61272898,0.00011232,2]
[422287737,1778794247000,-500.0,0.00011232,2]
[422287723,1778794247000,-500.0,0.00011232,2]
[422287717,1778794247000,-501.16256096,0.00011232,2]
[422287749,1778794247000,-500.0,0.00011232,2]
[422287739,1778794247000,-500.0,0.00011232,2]
[422287751,1778794247000,-500.0,0.00011232,2]
[422287753,1778794247000,-500.39686212,0.00011232,2]
[422287757,1778794247000,-308.43404463,0.00011232,2]
[422287740,1778794247000,-500.0,0.00011232,2]
[422287851,1778794247000,-500.0,0.00011232,2]
[422287849,1778794247000,-2424.0854,0.00011232,2]
[422287837,1778794247000,-580.44,0.00011232,2]
[422287907,1778794247000,-500.0,0.00011232,2]
[422287889,1778794247000,-486.15054051,0.00011232,2]
[422287905,1778794247000,-500.0,0.00011232,2]
[422287891,1778794247000,-13.84945949,0.00011232,2]
[422287893,1778794247000,-500.0,0.00011232,2]
[422287895,1778794247000,-500.0,0.00011232,2]
[422287899,1778794247000,-1591.47,0.00011232,2]
[422287897,1778794247000,-1153.57,0.00011232,2]
[422287909,1778794247000,-500.0,0.00011232,2]
[422287903,1778794247000,-500.0,0.00011232,2]
[422287915,1778794247000,-655.51,0.00011232,2]
[422287930,1778794247000,-502.90958503,0.00011232,2]
[422287917,1778794247000,-259.31903568,0.00011232,2]
[422287928,1778794247000,-500.0,0.00011232,2]
[422287919,1778794247000,-500.83997725,0.00011232,2]
[422287925,1778794247000,-1220.77,0.00011232,2]
[422287921,1778794247000,-500.0,0.00011232,2]
[422287923,1778794247000,-500.0,0.00011232,2]
[422287927,1778794247000,-500.0,0.00011232,2]
[422287841,1778794247000,-1060.31,0.00011232,2]
[422287913,1778794247000,-501.68141541,0.00011232,2]
[422287901,1778794247000,-520.01,0.00011232,2]
[422287911,1778794247000,-500.0,0.00011232,2]
[422287885,1778794247000,-500.0,0.00011232,2]
[422287847,1778794247000,-500.0,0.00011232,2]
[422287883,1778794247000,-1190.25,0.00011232,2]
[422287843,1778794247000,-500.0,0.00011232,2]
[422287844,1778794247000,-630.45,0.00011232,2]
[422287835,1778794247000,-500.0,0.00011232,2]
[422287839,1778794247000,-500.0,0.00011232,2]
[422287855,1778794247000,-500.0,0.00011232,2]
[422287859,1778794247000,-599.38,0.00011232,2]
[422287857,1778794247000,-356.11964327,0.00011232,2]
[422287861,1778794247000,-500.0,0.00011232,2]
[422287853,1778794247000,-500.0,0.00011232,2]
[422287873,1778794247000,-500.0,0.00011232,2]
[422287863,1778794247000,-500.0,0.00011232,2]
[422287875,1778794247000,-500.0,0.00011232,2]
[422287867,1778794247000,-560.03,0.00011232,2]
[422287887,1778794247000,-500.0,0.00011232,2]
[422287877,1778794247000,-1663.19,0.00011232,2]
[422287881,1778794247000,-500.0,0.00011232,2]
[422287865,1778794247000,-500.0,0.00011232,2]
[422287871,1778794247000,-1012.21,0.00011232,2]
[422287869,1778794247000,-500.0,0.00011232,2]
[422287879,1778794247000,-1126.82,0.00011232,2]
[422287988,1778794248000,-2366.82,0.00011232,2]
[422288022,1778794248000,-500.0,0.00011232,2]
[422288012,1778794248000,-500.0,0.00011232,2]
[422288018,1778794248000,-500.0,0.00011232,2]
[422288020,1778794248000,-500.0,0.00011232,2]
[422288016,1778794248000,-500.0,0.00011232,2]
[422288010,1778794248000,-500.0,0.00011232,2]
[422287994,1778794248000,-500.0,0.00011232,2]
[422287992,1778794248000,-1416.25,0.00011232,2]
[422288024,1778794248000,-500.0,0.00011232,2]
[422288014,1778794248000,-500.0,0.00011232,2]
[422288026,1778794248000,-500.0,0.00011232,2]
[422288043,1778794248000,-500.0,0.00011232,2]
[422288032,1778794248000,-500.0,0.00011232,2]
[422288030,1778794248000,-500.0,0.00011232,2]
[422288033,1778794248000,-500.0,0.00011232,2]
[422288035,1778794248000,-552.95,0.00011232,2]
[422288037,1778794248000,-559.79,0.00011232,2]
[422288039,1778794248000,-500.0,0.00011232,2]
[422288045,1778794248000,-500.0,0.00011232,2]
[422288041,1778794248000,-500.0,0.00011232,2]
[422288047,1778794248000,-500.0,0.00011232,2]
[422288049,1778794248000,-571.55590112,0.00011232,2]
[422287986,1778794248000,-500.0,0.00011232,2]
[422288028,1778794248000,-500.0,0.00011232,2]
[422287990,1778794248000,-500.0,0.00011232,2]
[422287938,1778794248000,-500.0,0.00011232,2]
[422287973,1778794248000,-768.01,0.00011232,2]
[422288051,1778794248000,-1233.85,0.00011232,2]
[422287936,1778794248000,-747.67,0.00011232,2]
[422287932,1778794248000,-1456.78,0.00011232,2]
[422287934,1778794248000,-500.0,0.00011232,2]
[422287942,1778794248000,-500.0,0.00011232,2]
[422287940,1778794248000,-2938.26,0.00011232,2]
[422287955,1778794248000,-565.36,0.00011232,2]
[422287957,1778794248000,-563.11,0.00011232,2]
[422287959,1778794248000,-610.08,0.00011232,2]
[422287953,1778794248000,-500.0,0.00011232,2]
[422287961,1778794248000,-500.0,0.00011232,2]
[422287945,1778794248000,-504.51670815,0.00011232,2]
[422287949,1778794248000,-500.0,0.00011232,2]
[422287947,1778794248000,-500.0,0.00011232,2]
[422287943,1778794248000,-3141.56,0.00011232,2]
[422287963,1778794248000,-556.28,0.00011232,2]
[422287951,1778794248000,-577.33,0.00011232,2]
[422287965,1778794248000,-584.95,0.00011232,2]
[422287967,1778794248000,-500.0,0.00011232,2]
[422287969,1778794248000,-500.0,0.00011232,2]
[422287974,1778794248000,-500.0,0.00011232,2]
[422287971,1778794248000,-500.0,0.00011232,2]
[422287976,1778794248000,-500.0,0.00011232,2]
[422287978,1778794248000,-500.0,0.00011232,2]
[422287982,1778794248000,-500.0,0.00011232,2]
[422287984,1778794248000,-803.13,0.00011232,2]
[422288064,1778794248000,-1775.17,0.00011232,2]
[422287980,1778794248000,-500.0,0.00011232,2]
[422288072,1778794248000,-500.0,0.00011232,2]
[422288110,1778794248000,-471.62414148,0.00011232,2]
[422288112,1778794248000,-500.0,0.00011232,2]
[422288149,1778794248000,-500.0,0.00011232,2]
[422288106,1778794248000,-500.0,0.00011232,2]
[422288125,1778794248000,-566.43,0.00011232,2]
[422288124,1778794248000,-500.0,0.00011232,2]
[422288127,1778794248000,-3265.22,0.00011232,2]
[422288129,1778794248000,-500.0,0.00011232,2]
[422288131,1778794248000,-500.0,0.00011232,2]
[422288133,1778794248000,-500.0,0.00011232,2]
[422288135,1778794248000,-429.99991471,0.00011232,2]
[422288136,1778794248000,-1339.58,0.00011232,2]
[422288139,1778794248000,-500.0,0.00011232,2]
[422288143,1778794248000,-1208.76,0.00011232,2]
[422288141,1778794248000,-500.0,0.00011232,2]
[422288144,1778794248000,-500.0,0.00011232,2]
[422288142,1778794248000,-500.0,0.00011232,2]
[422288137,1778794248000,-500.0,0.00011232,2]
[422288140,1778794248000,-500.0,0.00011232,2]
[422288145,1778794248000,-500.0,0.00011232,2]
[422288146,1778794248000,-500.0,0.00011232,2]
[422288148,1778794248000,-500.0,0.00011232,2]
[422288150,1778794248000,-500.0,0.00011232,2]
[422288147,1778794248000,-500.0,0.00011232,2]
[422288066,1778794248000,-500.0,0.00011232,2]
[422288108,1778794248000,-500.0,0.00011232,2]
[422288122,1778794248000,-500.0,0.00011232,2]
[422288138,1778794248000,-518.35823899,0.00011232,2]
[422288118,1778794248000,-500.0,0.00011232,2]
[422288120,1778794248000,-500.0,0.00011232,2]
[422288053,1778794248000,-500.0,0.00011232,2]
[422288068,1778794248000,-3102.45,0.00011232,2]
[422288070,1778794248000,-500.0,0.00011232,2]
[422288055,1778794248000,-584.43,0.00011232,2]
[422288076,1778794248000,-500.0,0.00011232,2]
[422288058,1778794248000,-932.86,0.00011232,2]
[422288062,1778794248000,-500.0,0.00011232,2]
[422288077,1778794248000,-500.0,0.00011232,2]
[422288074,1778794248000,-500.0,0.00011232,2]
[422288082,1778794248000,-500.0,0.00011232,2]
[422288091,1778794248000,-500.0,0.00011232,2]
[422288060,1778794248000,-500.0,0.00011232,2]
[422288093,1778794248000,-244.64438195,0.00011232,2]
[422288080,1778794248000,-500.0,0.00011232,2]
[422288104,1778794248000,-500.0,0.00011232,2]
[422288114,1778794248000,-500.0,0.00011232,2]
[422288116,1778794248000,-612.19,0.00011232,2]
[422288097,1778794248000,-500.0,0.00011232,2]
[422288087,1778794248000,-500.0,0.00011232,2]
[422288089,1778794248000,-500.0,0.00011232,2]
[422288099,1778794248000,-500.0,0.00011232,2]
[422288101,1778794248000,-500.0,0.00011232,2]
[422288086,1778794248000,-500.0,0.00011232,2]
[422288084,1778794248000,-500.0,0.00011232,2]
[422288095,1778794248000,-500.0,0.00011232,2]
[422288193,1778794249000,-500.0,0.00011232,2]
[422288191,1778794249000,-4812.31,0.00011232,2]
[422288195,1778794249000,-500.0,0.00011232,2]
[422288206,1778794249000,-500.0,0.00011232,2]
[422288199,1778794249000,-500.0,0.00011232,2]
[422288204,1778794249000,-500.0,0.00011232,2]
[422288197,1778794249000,-500.0,0.00011232,2]
[422288203,1778794249000,-500.0,0.00011232,2]
[422288215,1778794249000,-500.0,0.00011232,2]
[422288208,1778794249000,-1248.17,0.00011232,2]
[422288210,1778794249000,-3205.11,0.00011232,2]
[422288212,1778794249000,-617.34,0.00011232,2]
[422288213,1778794249000,-500.0,0.00011232,2]
[422288219,1778794249000,-500.0,0.00011232,2]
[422288229,1778794249000,-500.0,0.00011232,2]
[422288189,1778794249000,-500.0,0.00011232,2]
[422288217,1778794249000,-500.0,0.00011232,2]
[422288201,1778794249000,-1221.71,0.00011232,2]
[422288185,1778794249000,-4672.67,0.00011232,2]
[422288155,1778794249000,-500.0,0.00011232,2]
[422288187,1778794249000,-943.44,0.00011232,2]
[422288227,1778794249000,-2244.02,0.00011232,2]
[422288162,1778794249000,-500.0,0.00011232,2]
[422288158,1778794249000,-2834.4,0.00011232,2]
[422288160,1778794249000,-500.0,0.00011232,2]
[422288151,1778794249000,-500.0,0.00011232,2]
[422288153,1778794249000,-500.0,0.00011232,2]
[422288164,1778794249000,-500.0,0.00011232,2]
[422288156,1778794249000,-500.0,0.00011232,2]
[422288165,1778794249000,-1006.36,0.00011232,2]
[422288167,1778794249000,-2604.57,0.00011232,2]
[422288178,1778794249000,-500.0,0.00011232,2]
[422288174,1778794249000,-253.14591845,0.00011232,2]
[422288171,1778794249000,-500.0,0.00011232,2]
[422288175,1778794249000,-500.0,0.00011232,2]
[422288169,1778794249000,-500.0,0.00011232,2]
[422288179,1778794249000,-500.0,0.00011232,2]
[422288181,1778794249000,-525.99,0.00011232,2]
[422288183,1778794249000,-500.0,0.00011232,2]
[422288221,1778794249000,-500.0,0.00011232,2]
[422288279,1778794249000,-500.0,0.00011232,2]
[422288225,1778794249000,-500.0,0.00011232,2]
[422288277,1778794249000,-638.95,0.00011232,2]
[422288281,1778794249000,-500.0,0.00011232,2]
[422288270,1778794249000,-500.0,0.00011232,2]
[422288282,1778794249000,-500.0,0.00011232,2]
[422288272,1778794249000,-6700.2,0.00011232,2]
[422288286,1778794249000,-500.54244235,0.00011232,2]
[422288284,1778794249000,-2536.27,0.00011232,2]
[422288288,1778794249000,-1178.99943702,0.00011232,2]
[422288291,1778794249000,-124.34056298,0.00011232,2]
[422288293,1778794249000,-500.0,0.00011232,2]
[422288294,1778794249000,-500.0,0.00011232,2]
[422288298,1778794249000,-2049.06,0.00011232,2]
[422288300,1778794249000,-500.0,0.00011232,2]
[422288296,1778794249000,-500.0,0.00011232,2]
[422288308,1778794249000,-500.0,0.00011232,2]
[422288304,1778794249000,-500.0,0.00011232,2]
[422288311,1778794249000,-12.61854139,0.00011232,2]
[422288223,1778794249000,-500.0,0.00011232,2]
[422288274,1778794249000,-500.0,0.00011232,2]
[422288275,1778794249000,-500.0,0.00011232,2]
[422288266,1778794249000,-500.0,0.00011232,2]
[422288231,1778794249000,-500.0,0.00011232,2]
[422288232,1778794249000,-167.5049271,0.00011232,2]
[422288236,1778794249000,-500.0,0.00011232,2]
[422288238,1778794249000,-1307.57,0.00011232,2]
[422288234,1778794249000,-500.0,0.00011232,2]
[422288240,1778794249000,-500.0,0.00011232,2]
[422288252,1778794249000,-500.0,0.00011232,2]
[422288254,1778794249000,-500.0,0.00011232,2]
[422288268,1778794249000,-500.0,0.00011232,2]
[422288244,1778794249000,-503.28,0.00011232,2]
[422288246,1778794249000,-500.0,0.00011232,2]
[422288256,1778794249000,-500.0,0.00011232,2]
[422288250,1778794249000,-500.0,0.00011232,2]
[422288248,1778794249000,-500.0,0.00011232,2]
[422288258,1778794249000,-6216.04,0.00011232,2]
[422288260,1778794249000,-500.0,0.00011232,2]
[422288262,1778794249000,-500.0,0.00011232,2]
[422288264,1778794249000,-500.0,0.00011232,2]
[422288242,1778794249000,-638.23,0.00011232,2]
[422288403,1778794250000,-967.52948529,0.00011232,2]
[422288370,1778794250000,-500.0,0.00010958,2]
[422288367,1778794250000,-500.0,0.00010958,2]
[422288404,1778794250000,-475.72082266,0.00011232,2]
[422288372,1778794250000,-1117.33197332,0.00011232,2]
[422288409,1778794250000,-635.81361444,0.00011232,2]
[422288415,1778794250000,-395.74916856,0.00011232,2]
[422288407,1778794250000,-318.3455629,0.00011232,2]
[422288413,1778794250000,-500.0,0.00011232,2]
[422288411,1778794250000,-1741.46,0.00011232,2]
[422290324,1778795432000,-3179.7982655,6.442e-05,2]
[422290323,1778795432000,-152.0,6.29e-05,7]
[422290394,1778795438000,-1006.23646132,0.0001,2]
[422290390,1778795438000,-160.0,9.995e-05,2]
[422290387,1778795438000,-499.999999,9.9e-05,2]
[422290379,1778795438000,-151.0,9.75e-05,2]
[422290389,1778795438000,-161.64793294,9.995e-05,2]
[422290381,1778795438000,-151.0,9.75e-05,2]
[422290377,1778795438000,-8443.40051,9.123e-05,2]
[422290383,1778795438000,-151.0,9.75e-05,2]
[422290398,1778795438000,-1038.53600842,0.0001,2]
[422290385,1778795438000,-160.0,9.753e-05,2]
[422290375,1778795438000,-300.0,9.122e-05,2]
[422290369,1778795438000,-138.38839209,8.508e-05,2]
[422290365,1778795438000,-63.92207419,6.442e-05,2]
[422290363,1778795438000,-1756.27966031,6.442e-05,2]
[422290392,1778795438000,-160.0,9.995e-05,2]
[422290396,1778795438000,-1490.96542979,0.0001,2]
[422290367,1778795438000,-271.26329771,6.508e-05,2]
[422290404,1778795438000,-2529.50143821,0.000101,2]
[422290402,1778795438000,-1006.23646132,0.000101,2]
[422290437,1778795438000,-733037.71428099,0.000106,2]
[422290431,1778795438000,-162.380719,0.00010594,2]
[422290433,1778795438000,-1006.23646132,0.000106,2]
[422290425,1778795438000,-2529.50143821,0.000105,2]
[422290429,1778795438000,-368.91808488,0.00010507,2]
[422290435,1778795438000,-2529.50143821,0.000106,2]
[422290427,1778795438000,-7206.34767978,0.000105,2]
[422290373,1778795438000,-181.70229921,8.508e-05,2]
[422290415,1778795438000,-1006.23646132,0.000103,2]
[422290417,1778795438000,-2529.50143821,0.000103,2]
[422290411,1778795438000,-260.64570475,0.000102,2]
[422290413,1778795438000,-2529.50143821,0.000102,2]
[422290423,1778795438000,-1006.23646132,0.000105,2]
[422290400,1778795438000,-420.0,0.00010035,2]
[422290419,1778795438000,-1006.23646132,0.000104,2]
[422290421,1778795438000,-2529.50143821,0.000104,2]
[422290406,1778795438000,-745.59075657,0.000102,2]
[422290703,1778795440000,-7770.42181906,0.000106,2]
[422290709,1778795440000,-11515.60000023,0.000106,2]
[422290718,1778795440000,-5739.08638021,0.000106,2]
[422290720,1778795440000,-11580.93174886,0.000106,2]
[422290711,1778795440000,-3687.01289079,0.000106,2]
[422291070,1778795443000,-6953.26716005,0.000106,2]
[422291082,1778795443000,-2120.85319521,0.000106,2]
[422291074,1778795443000,-819.51562325,0.000106,2]
[422291072,1778795443000,-1012.16871165,0.000106,2]
[422291084,1778795443000,-911.91340463,0.000106,2]
[422291086,1778795443000,-1617.10945299,0.000106,2]
[422291080,1778795443000,-4143.0169926,0.000106,2]
[422293329,1778796638000,-259.57916199,9.042e-05,2]
[422293331,1778796638000,-200.0,9.087e-05,2]
[422293344,1778796638000,-6047.38578589,9.7e-05,2]
[422293333,1778796638000,-5751.7473967,9.127e-05,2]
[422293346,1778796638000,-288.51612838,9.8e-05,2]
[422293351,1778796638000,-4698.47142538,9.8e-05,2]
[422293335,1778796638000,-2335.73486661,9.2e-05,2]
[422293349,1778796638000,-1441.70641936,9.8e-05,2]
[422293336,1778796638000,-300.0,9.299e-05,2]
[422293340,1778796638000,-300.0,9.308e-05,2]
[422293342,1778796638000,-4903.46122432,9.4e-05,2]
[422293353,1778796638000,-4561.32988701,9.9e-05,2]
[422293355,1778796638000,-2248.67227334,9.9e-05,2]
[422293357,1778796638000,-161.64793294,9.995e-05,2]
[422293367,1778796638000,-36.60644676,0.0001,2]
[422293360,1778796638000,-160.0,9.995e-05,2]
[422293366,1778796638000,-1963.78239749,0.0001,2]
[422293362,1778796638000,-160.0,9.995e-05,2]
[422293327,1778796638000,-5000.0,8.996e-05,2]
[422293338,1778796638000,-4693.16867563,9.3e-05,2]
[422293363,1778796638000,-592.38337947,0.0001,2]
[422293628,1778796640000,-860.82289138,0.0001,2]
[422293644,1778796641000,-80.79418253,0.0001,2]
[422293646,1778796641000,-6900.83581747,0.0001,2]
[422294029,1778796644000,-4618.65454512,0.0001,2]
[422294027,1778796644000,-966.01686751,0.0001,2]
[422294025,1778796644000,-149.76666717,0.0001,2]
[422294371,1778796646000,-1326.53801658,0.0001,2]
[422295721,1778797838000,-300.0,8.256e-05,2]
[422295718,1778797838000,-325.80027339,8.174e-05,2]
[422295723,1778797838000,-1852.17879464,8.257e-05,2]
[422295729,1778797838000,-529.97321541,8.691e-05,2]
[422295720,1778797838000,-4674.19972661,8.174e-05,2]
[422295725,1778797838000,-4212.51522099,8.257e-05,2]
[422295731,1778797838000,-420.0,9.081e-05,2]
[422295732,1778797838000,-6744.8252194,9.123e-05,2]
[422295735,1778797838000,-56881.94360994,9.698e-05,2]
[422295727,1778797838000,-261.7584584,8.647e-05,2]
[422295769,1778797839000,-500.0,9.798e-05,2]
[422295767,1778797839000,-500.0,9.798e-05,2]
[422295765,1778797839000,-500.0,9.798e-05,2]
[422295763,1778797839000,-500.0,9.798e-05,2]
[422295759,1778797839000,-500.0,9.798e-05,2]
[422295752,1778797839000,-422.6905,9.699e-05,2]
[422295750,1778797839000,-168521.45600986,9.698e-05,2]
[422295748,1778797839000,-2155.54277787,9.698e-05,2]
[422295757,1778797839000,-290.862,9.779e-05,2]
[422295756,1778797839000,-3678.1534154,9.779e-05,2]
[422295746,1778797839000,-66208.73024085,9.698e-05,2]
[422295781,1778797839000,-500.0,9.798e-05,2]
[422295754,1778797839000,-160.0,9.779e-05,2]
[422295780,1778797839000,-500.0,9.798e-05,2]
[422295761,1778797839000,-500.0,9.798e-05,2]
[422295776,1778797839000,-500.0,9.798e-05,2]
[422295783,1778797839000,-273.62586166,9.798e-05,2]
[422295800,1778797839000,-2204.19694193,0.0001,2]
[422295798,1778797839000,-21650.20944109,0.0001,2]
[422295796,1778797839000,-552.0,9.989e-05,2]
[422295794,1778797839000,-21622.0885144,9.972e-05,2]
[422295792,1778797839000,-160.0,9.968e-05,2]
[422295791,1778797839000,-161.64793294,9.968e-05,2]
[422295787,1778797839000,-500.0,9.798e-05,2]
[422295785,1778797839000,-500.0,9.798e-05,2]
[422295771,1778797839000,-500.0,9.798e-05,2]
[422295774,1778797839000,-500.0,9.798e-05,2]
[422295778,1778797839000,-500.0,9.798e-05,2]
[422295773,1778797839000,-500.0,9.798e-05,2]
[422295789,1778797839000,-512.27876782,9.798e-05,2]
[422296983,1778797848000,-1365.08688612,9.9e-05,2]
[422296985,1778797848000,-3634.91311388,9.9e-05,2]
[422296988,1778797848000,-2741.80797015,0.0001,2]
[422296995,1778797848000,-16476.47080799,0.0001,2]
[422296987,1778797848000,-160.0,9.968e-05,2]
[422296997,1778797848000,-5576.13272456,0.0001,2]
[422296990,1778797848000,-280.94133602,0.0001,2]
[422298232,1778799032000,-456.4711948,9.57e-05,2]
[422298235,1778799032000,-634.96627643,9.598e-05,2]
[422298234,1778799032000,-358.59513748,9.598e-05,2]
[422298228,1778799032000,-151.0,9.57e-05,2]
[422298229,1778799032000,-151.0,9.57e-05,2]
[422298233,1778799032000,-634.96627643,9.598e-05,2]
[422298231,1778799032000,-325.8583785,9.57e-05,2]
[422298225,1778799032000,-151.0,9.57e-05,2]
[422298223,1778799032000,-279.4837982,9.57e-05,2]
[422298211,1778799032000,-1426.4985,8.72e-05,2]
[422298219,1778799032000,-151.0,9.435e-05,2]
[422298218,1778799032000,-456.4711948,9.435e-05,2]
[422298214,1778799032000,-263.92804895,8.942e-05,2]
[422298220,1778799032000,-408.36248611,9.476e-05,2]
[422298217,1778799032000,-4256.3606337,9.123e-05,2]
[422298215,1778799032000,-724.0,9.121e-05,2]
[422298216,1778799032000,-300.0,9.122e-05,2]
[422298213,1778799032000,-4119.69368952,8.808e-05,2]
[422298212,1778799032000,-880.30631048,8.808e-05,2]
[422298221,1778799032000,-1631.8164945,9.476e-05,2]
[422298230,1778799032000,-456.4711948,9.57e-05,2]
[422298226,1778799032000,-325.6155584,9.57e-05,2]
[422298237,1778799032000,-634.96627643,9.598e-05,2]
[422298257,1778799032000,-634.96627643,9.598e-05,2]
[422298254,1778799032000,-500.0,9.598e-05,2]
[422298253,1778799032000,-481.4376486,9.598e-05,2]
[422298255,1778799032000,-634.96627643,9.598e-05,2]
[422298252,1778799032000,-634.96627643,9.598e-05,2]
[422298251,1778799032000,-500.0,9.598e-05,2]
[422298246,1778799032000,-500.0,9.598e-05,2]
[422298244,1778799032000,-634.96627643,9.598e-05,2]
[422298243,1778799032000,-634.96627643,9.598e-05,2]
[422298256,1778799032000,-500.0,9.598e-05,2]
[422298247,1778799032000,-500.0,9.598e-05,2]
[422298245,1778799032000,-500.0,9.598e-05,2]
[422298238,1778799032000,-634.96627643,9.598e-05,2]
[422298240,1778799032000,-634.96627643,9.598e-05,2]
[422298250,1778799032000,-500.0,9.598e-05,2]
[422298236,1778799032000,-634.96627643,9.598e-05,2]
[422298241,1778799032000,-634.96627643,9.598e-05,2]
[422298248,1778799032000,-500.0,9.598e-05,2]
[422298242,1778799032000,-634.96627643,9.598e-05,2]
[422298249,1778799032000,-363.73620685,9.598e-05,2]
[422298239,1778799032000,-634.96627643,9.598e-05,2]
[422298258,1778799033000,-619.34615719,9.598e-05,2]
[422298318,1778799038000,-15.62011924,9.598e-05,2]
[422298319,1778799038000,-634.96627643,9.598e-05,2]
[422298322,1778799039000,-634.96627643,9.598e-05,2]
[422298323,1778799039000,-634.96627643,9.598e-05,2]
[422298327,1778799039000,-123.42388374,9.598e-05,2]
[422298325,1778799039000,-677.29736152,9.598e-05,2]
[422298627,1778799041000,-269.80856965,9.598e-05,2]
[422298629,1778799041000,-90.18418719,9.598e-05,2]
[422298625,1778799041000,-325.99178291,9.598e-05,2]
[422298620,1778799041000,-81.49700896,9.598e-05,2]
[422298618,1778799041000,-559.27508784,9.598e-05,2]
[422298616,1778799041000,-118.02227368,9.598e-05,2]
[422298614,1778799041000,-553.87347778,9.598e-05,2]
[422298973,1778799044000,-450.27000567,9.598e-05,2]
[422298971,1778799044000,-587.11317433,9.598e-05,2]
[422299303,1778799047000,-677.29736152,9.598e-05,2]
[422299301,1778799047000,-227.02735585,9.598e-05,2]
[422299305,1778799047000,-427.88615353,9.598e-05,2]
[422300642,1778799480000,164.757805,4.142e-05,2]
[422300688,1778800232000,-300.0,8.124e-05,2]
[422300687,1778800232000,-164.757805,8.122e-05,2]
[422300689,1778800232000,-26.20175026,8.124e-05,2]
[422300686,1778800232000,-300.0,8.047e-05,2]